[Event "*** Titled Tuesday Blitz"]
[Site "Chess.com"]
[Date "2020.05.12"]
[Round "1"]
[White "secretsuperstar7"]
[Black "AminMolaei"]
[Result "1-0"]
[WhiteElo "2215"]
[BlackElo "2521"]
[TimeControl "180+1"]
[EndTime "10:08:14 PDT"]
[Termination "secretsuperstar7 won by checkmate"]

1. d4 {[%clk 0:03:00.5]} 1... e6 {[%clk 0:02:59.6]} 2. c4 {[%clk 0:02:59.3]}
2... b6 {[%clk 0:02:59.8]} 3. Nc3 {[%clk 0:02:51.4]} 3... Bb7 {[%clk 0:02:59.5]}
4. e4 {[%clk 0:02:51.7]} 4... Bb4 {[%clk 0:02:59.5]} 5. d5 {[%clk 0:02:47.3]}
5... Nf6 {[%clk 0:02:45.3]} 6. e5 {[%clk 0:02:40.3]} 6... Ne4 {[%clk 0:02:44.2]}
7. Qd3 {[%clk 0:02:36.1]} 7... Nxc3 {[%clk 0:01:53.7]} 8. bxc3 {[%clk
0:02:34.5]} 8... Bc5 {[%clk 0:01:50.8]} 9. Qg3 {[%clk 0:02:30.4]} 9... Bf8
{[%clk 0:01:46.6]} 10. Bg5 {[%clk 0:02:25.1]} 10... Qc8 {[%clk 0:01:46]} 11. Rd1
{[%clk 0:02:15.6]} 11... Na6 {[%clk 0:01:44.8]} 12. Nf3 {[%clk 0:02:11.4]} 12...
Nc5 {[%clk 0:01:41.5]} 13. Qh4 {[%clk 0:02:04.2]} 13... a5 {[%clk 0:01:14.7]}
14. Be2 {[%clk 0:02:02.4]} 14... a4 {[%clk 0:01:14.4]} 15. O-O {[%clk 0:01:57]}
15... a3 {[%clk 0:01:12.7]} 16. Ne1 {[%clk 0:01:50.6]} 16... Ra4 {[%clk
0:01:11.6]} 17. Nc2 {[%clk 0:01:47.7]} 17... exd5 {[%clk 0:01:09.3]} 18. Rd4
{[%clk 0:01:38.6]} 18... Ne6 {[%clk 0:01:05.7]} 19. Rg4 {[%clk 0:01:27.9]} 19...
h6 {[%clk 0:01:00.9]} 20. Be3 {[%clk 0:01:17.4]} 20... dxc4 {[%clk 0:00:58.2]}
21. Bxc4 {[%clk 0:01:15.8]} 21... Be7 {[%clk 0:00:53.3]} 22. Qg3 {[%clk
0:01:11.9]} 22... h5 {[%clk 0:00:49]} 23. Rxg7 {[%clk 0:00:58.6]} 23... Rxc4
{[%clk 0:00:43.3]} 24. Rg8+ {[%clk 0:00:56.4]} 24... Rxg8 {[%clk 0:00:41.5]} 25.
Qxg8+ {[%clk 0:00:57.1]} 25... Bf8 {[%clk 0:00:38.7]} 26. f4 {[%clk 0:00:56.1]}
26... Be4 {[%clk 0:00:35.3]} 27. f5 {[%clk 0:00:53.8]} 27... Ng7 {[%clk
0:00:27.2]} 28. Nd4 {[%clk 0:00:47.7]} 28... Rxd4 {[%clk 0:00:22.7]} 29. cxd4
{[%clk 0:00:45.8]} 29... Nxf5 {[%clk 0:00:22.7]} 30. Bd2 {[%clk 0:00:32.1]}
30... c5 {[%clk 0:00:20.7]} 31. d5 {[%clk 0:00:30.4]} 31... Ne7 {[%clk
0:00:19.4]} 32. Qxf7+ {[%clk 0:00:26.2]} 32... Kd8 {[%clk 0:00:18.9]} 33. Qxf8+
{[%clk 0:00:26.5]} 33... Kc7 {[%clk 0:00:19.4]} 34. Qxe7 {[%clk 0:00:26.6]}
34... Bxd5 {[%clk 0:00:18.9]} 35. Qd6+ {[%clk 0:00:26.2]} 35... Kb7 {[%clk
0:00:19.1]} 36. Qxd5+ {[%clk 0:00:26.9]} 36... Ka6 {[%clk 0:00:19.7]} 37. Qc4+
{[%clk 0:00:25.8]} 37... b5 {[%clk 0:00:19.9]} 38. Qd5 {[%clk 0:00:25.6]} 38...
b4 {[%clk 0:00:17.6]} 39. Qd6+ {[%clk 0:00:24.7]} 39... Kb5 {[%clk 0:00:17.6]}
40. Be3 {[%clk 0:00:22.2]} 40... Qc6 {[%clk 0:00:13.3]} 41. Qxc6+ {[%clk
0:00:20.3]} 41... dxc6 {[%clk 0:00:13.6]} 42. Rc1 {[%clk 0:00:18.9]} 42... c4
{[%clk 0:00:13.5]} 43. e6 {[%clk 0:00:19.1]} 43... b3 {[%clk 0:00:13.7]} 44. e7
{[%clk 0:00:18.7]} 44... b2 {[%clk 0:00:13.1]} 45. Rb1 {[%clk 0:00:18]} 45... c3
{[%clk 0:00:13.4]} 46. e8=Q {[%clk 0:00:17.1]} 46... c2 {[%clk 0:00:13.9]} 47.
Qb8+ {[%clk 0:00:17]} 47... Kc4 {[%clk 0:00:13.2]} 48. Rxb2 {[%clk 0:00:17.7]}
48... axb2 {[%clk 0:00:07.5]} 49. Qxb2 {[%clk 0:00:17.4]} 49... Kd3 {[%clk
0:00:06.6]} 50. Bc1 {[%clk 0:00:15.8]} 50... c5 {[%clk 0:00:06.1]} 51. Qb3+
{[%clk 0:00:16.1]} 51... Ke2 {[%clk 0:00:04.7]} 52. Qxc2+ {[%clk 0:00:16.2]}
52... Ke1 {[%clk 0:00:03.1]} 53. Qd2# {[%clk 0:00:16.7]} 1-0

[Event "*** Titled Tuesday Blitz"]
[Site "Chess.com"]
[Date "2020.05.12"]
[Round "1"]
[White "Harsha_Bharathakoti"]
[Black "etesungam"]
[Result "1-0"]
[WhiteElo "2828"]
[BlackElo "2428"]
[TimeControl "180+1"]
[EndTime "10:08:19 PDT"]
[Termination "Harsha_Bharathakoti won by resignation"]

1. Nf3 {[%clk 0:03:00.9]} 1... Nf6 {[%clk 0:02:59.1]} 2. c4 {[%clk 0:03:00.1]}
2... c6 {[%clk 0:02:57.2]} 3. Nc3 {[%clk 0:02:57.8]} 3... d5 {[%clk 0:02:57.2]}
4. d4 {[%clk 0:02:57.6]} 4... e6 {[%clk 0:02:55.9]} 5. e3 {[%clk 0:02:56.1]}
5... Nbd7 {[%clk 0:02:50.6]} 6. Qc2 {[%clk 0:02:55]} 6... Bd6 {[%clk 0:02:49.7]}
7. Be2 {[%clk 0:02:55.7]} 7... O-O {[%clk 0:02:49.2]} 8. O-O {[%clk 0:02:55.6]}
8... dxc4 {[%clk 0:02:45.6]} 9. a4 {[%clk 0:02:55.3]} 9... e5 {[%clk 0:02:37.4]}
10. Bxc4 {[%clk 0:02:55.2]} 10... exd4 {[%clk 0:02:36.7]} 11. exd4 {[%clk
0:02:56.1]} 11... Nb6 {[%clk 0:02:36.5]} 12. Bb3 {[%clk 0:02:52.1]} 12... h6
{[%clk 0:02:35.2]} 13. h3 {[%clk 0:02:48.6]} 13... Nbd5 {[%clk 0:02:34]} 14. Ne5
{[%clk 0:02:43.4]} 14... Be6 {[%clk 0:02:33.1]} 15. Re1 {[%clk 0:02:31.9]} 15...
Qb6 {[%clk 0:02:29]} 16. Nc4 {[%clk 0:02:28.4]} 16... Qc7 {[%clk 0:02:28.2]} 17.
Bd2 {[%clk 0:01:38.3]} 17... Rfe8 {[%clk 0:02:27.4]} 18. a5 {[%clk 0:01:24.3]}
18... Nb4 {[%clk 0:02:26.9]} 19. Qb1 {[%clk 0:01:23.7]} 19... Bxc4 {[%clk
0:02:20.7]} 20. Rxe8+ {[%clk 0:01:20.3]} 20... Rxe8 {[%clk 0:02:19.7]} 21. Bxc4
{[%clk 0:01:21.2]} 21... a6 {[%clk 0:02:12.7]} 22. Qd1 {[%clk 0:01:15.4]} 22...
Nbd5 {[%clk 0:02:12.3]} 23. Qf3 {[%clk 0:01:14.9]} 23... Qd7 {[%clk 0:02:05.8]}
24. Re1 {[%clk 0:00:55]} 24... Rxe1+ {[%clk 0:02:04.7]} 25. Bxe1 {[%clk
0:00:55.9]} 25... Bc7 {[%clk 0:02:04.4]} 26. Na4 {[%clk 0:00:53]} 26... Qe7
{[%clk 0:01:54.9]} 27. Kf1 {[%clk 0:00:47.8]} 27... Ne4 {[%clk 0:01:37.9]} 28.
Bd3 {[%clk 0:00:30.4]} 28... Ndf6 {[%clk 0:01:30.5]} 29. Qf5 {[%clk 0:00:25.1]}
29... Nd6 {[%clk 0:01:24.3]} 30. Qe5 {[%clk 0:00:23.4]} 30... Qd8 {[%clk
0:01:15.2]} 31. Qe2 {[%clk 0:00:21.7]} 31... Bxa5 {[%clk 0:01:08.4]} 32. Nc5
{[%clk 0:00:20.7]} 32... Bxe1 {[%clk 0:01:06.3]} 33. Qxe1 {[%clk 0:00:21.6]}
33... Qe8 {[%clk 0:00:59.6]} 34. Qe5 {[%clk 0:00:19.8]} 34... Qd8 {[%clk
0:00:48.9]} 35. g3 {[%clk 0:00:14.9]} 35... a5 {[%clk 0:00:46.2]} 36. Kg2 {[%clk
0:00:14.9]} 36... b6 {[%clk 0:00:46.2]} 37. Na4 {[%clk 0:00:14.1]} 37... Nc8
{[%clk 0:00:35.7]} 38. Nc3 {[%clk 0:00:10.8]} 38... Ne7 {[%clk 0:00:34]} 39. Bc4
{[%clk 0:00:08.5]} 39... Ned5 {[%clk 0:00:33.4]} 40. Bxd5 {[%clk 0:00:06.9]}
40... cxd5 {[%clk 0:00:33.1]} 41. g4 {[%clk 0:00:06.2]} 41... Qd7 {[%clk
0:00:31.4]} 42. Kg3 {[%clk 0:00:05.3]} 42... Qe6 {[%clk 0:00:30.3]} 43. f3
{[%clk 0:00:05.3]} 43... Qxe5+ {[%clk 0:00:27.6]} 44. dxe5 {[%clk 0:00:05.5]}
44... Nd7 {[%clk 0:00:27.9]} 45. Nxd5 {[%clk 0:00:06.1]} 45... b5 {[%clk
0:00:25.4]} 46. Kf4 {[%clk 0:00:06.7]} 46... Nc5 {[%clk 0:00:24.2]} 47. Ke3
{[%clk 0:00:07.1]} 47... Kf8 {[%clk 0:00:23.3]} 48. Nc7 {[%clk 0:00:05.4]} 48...
b4 {[%clk 0:00:22.9]} 49. Kd4 {[%clk 0:00:06.2]} 49... Ne6+ {[%clk 0:00:20.7]}
50. Nxe6+ {[%clk 0:00:06.6]} 50... fxe6 {[%clk 0:00:21.4]} 51. Kc4 {[%clk
0:00:07.5]} 51... Ke7 {[%clk 0:00:18.4]} 52. Kb5 {[%clk 0:00:07.7]} 52... Kd7
{[%clk 0:00:18.2]} 53. Kxa5 {[%clk 0:00:08.2]} 53... Kc6 {[%clk 0:00:19.1]} 54.
Kxb4 {[%clk 0:00:07.9]} 54... Kd5 {[%clk 0:00:20]} 55. f4 {[%clk 0:00:05.9]}
55... Ke4 {[%clk 0:00:19.6]} 56. Kc5 {[%clk 0:00:06.2]} 56... Kxf4 {[%clk
0:00:19.7]} 57. b4 {[%clk 0:00:07.1]} 57... Kxe5 {[%clk 0:00:19.7]} 58. b5
{[%clk 0:00:08]} 58... Kf4 {[%clk 0:00:19.8]} 59. b6 {[%clk 0:00:08.9]} 59... e5
{[%clk 0:00:20.1]} 60. b7 {[%clk 0:00:09.8]} 60... Kg3 {[%clk 0:00:20.6]} 61.
b8=Q {[%clk 0:00:10.7]} 61... Kxh3 {[%clk 0:00:20.8]} 62. Qxe5 {[%clk
0:00:11.2]} 1-0

[Event "*** Titled Tuesday Blitz"]
[Site "Chess.com"]
[Date "2020.05.12"]
[Round "1"]
[White "jacky72"]
[Black "Justinz"]
[Result "1-0"]
[WhiteElo "2650"]
[BlackElo "2326"]
[TimeControl "180+1"]
[EndTime "10:08:20 PDT"]
[Termination "jacky72 won by resignation"]

1. d4 {[%clk 0:03:00.9]} 1... Nf6 {[%clk 0:02:42]} 2. c4 {[%clk 0:03:00.2]} 2...
e6 {[%clk 0:02:36.4]} 3. Nc3 {[%clk 0:03:00.2]} 3... Bb4 {[%clk 0:02:34.8]} 4.
f3 {[%clk 0:03:00.7]} 4... c5 {[%clk 0:02:25.7]} 5. d5 {[%clk 0:03:00.1]} 5...
d6 {[%clk 0:02:25.8]} 6. e4 {[%clk 0:03:00.1]} 6... O-O {[%clk 0:02:24.9]} 7.
Bd3 {[%clk 0:03:00.6]} 7... b5 {[%clk 0:02:15.9]} 8. Ne2 {[%clk 0:02:57.4]} 8...
exd5 {[%clk 0:02:10.3]} 9. cxd5 {[%clk 0:02:55]} 9... a6 {[%clk 0:02:09.4]} 10.
O-O {[%clk 0:02:54.7]} 10... Re8 {[%clk 0:02:09]} 11. Bg5 {[%clk 0:02:53]} 11...
Nbd7 {[%clk 0:02:08.7]} 12. Kh1 {[%clk 0:02:51.4]} 12... h6 {[%clk 0:01:49.3]}
13. Bh4 {[%clk 0:02:51.1]} 13... Ne5 {[%clk 0:01:48.6]} 14. Bc2 {[%clk
0:02:50.5]} 14... Ng6 {[%clk 0:01:48.3]} 15. Bg3 {[%clk 0:02:49.9]} 15... Nh5
{[%clk 0:01:42.8]} 16. Qd2 {[%clk 0:02:35.3]} 16... Nxg3+ {[%clk 0:01:34.8]} 17.
Nxg3 {[%clk 0:02:36.2]} 17... Qh4 {[%clk 0:01:32.4]} 18. f4 {[%clk 0:02:33]}
18... Bd7 {[%clk 0:01:28.1]} 19. Rae1 {[%clk 0:02:32.8]} 19... Rad8 {[%clk
0:01:18.7]} 20. e5 {[%clk 0:02:32.7]} 20... dxe5 {[%clk 0:01:17.7]} 21. Bxg6
{[%clk 0:02:33]} 21... fxg6 {[%clk 0:01:16.5]} 22. fxe5 {[%clk 0:02:32]} 22...
Bg4 {[%clk 0:01:15]} 23. d6 {[%clk 0:02:24.4]} 23... c4 {[%clk 0:01:14.3]} 24.
a3 {[%clk 0:02:23.6]} 24... Ba5 {[%clk 0:01:11.5]} 25. Re4 {[%clk 0:02:16.6]}
25... Kh7 {[%clk 0:01:02.2]} 26. Qd4 {[%clk 0:02:12.5]} 26... h5 {[%clk
0:01:00.1]} 27. Nd5 {[%clk 0:02:12.8]} 27... Qg5 {[%clk 0:00:57.2]} 28. Ne7
{[%clk 0:02:02]} 28... Qxe7 {[%clk 0:00:53.7]} 29. dxe7 {[%clk 0:02:02.9]} 29...
Rxd4 {[%clk 0:00:54.2]} 30. Rxd4 {[%clk 0:02:03]} 30... Rxe7 {[%clk 0:00:55.1]}
31. h3 {[%clk 0:01:52.1]} 31... Bc8 {[%clk 0:00:52.7]} 32. Re4 {[%clk
0:01:36.3]} 32... c3 {[%clk 0:00:51.6]} 33. b4 {[%clk 0:01:28.3]} 33... Bb6
{[%clk 0:00:50.6]} 34. Rc1 {[%clk 0:01:26.5]} 34... Bb7 {[%clk 0:00:49.9]} 35.
Re2 {[%clk 0:01:23.1]} 35... Bd4 {[%clk 0:00:49.1]} 36. e6 {[%clk 0:01:21]}
36... h4 {[%clk 0:00:47.1]} 37. Ne4 {[%clk 0:01:19]} 37... Kh6 {[%clk
0:00:42.7]} 38. Nc5 {[%clk 0:01:00.6]} 38... Bc8 {[%clk 0:00:37.4]} 39. Re4
{[%clk 0:00:54.8]} 39... Bf6 {[%clk 0:00:36.5]} 40. Rc2 {[%clk 0:00:48.4]} 40...
g5 {[%clk 0:00:32.7]} 41. Kg1 {[%clk 0:00:47.6]} 41... Kg6 {[%clk 0:00:32.3]}
42. Kf1 {[%clk 0:00:47.9]} 42... Kf5 {[%clk 0:00:32.1]} 43. Rf2+ {[%clk
0:00:41.9]} 43... Kg6 {[%clk 0:00:31.9]} 44. Ke2 {[%clk 0:00:42.1]} 44... a5
{[%clk 0:00:25.3]} 45. Kd3 {[%clk 0:00:41.6]} 45... axb4 {[%clk 0:00:25]} 46.
axb4 {[%clk 0:00:42.5]} 46... Rc7 {[%clk 0:00:21]} 47. Rfe2 {[%clk 0:00:40.6]}
47... Be7 {[%clk 0:00:20.7]} 48. Re5 {[%clk 0:00:39.6]} 48... Kf6 {[%clk
0:00:19.3]} 49. Kxc3 {[%clk 0:00:34.1]} 49... Kg6 {[%clk 0:00:13.5]} 50. Kd2
{[%clk 0:00:31.3]} 50... Bb7 {[%clk 0:00:11.2]} 51. R5e3 {[%clk 0:00:29.3]}
51... Bd5 {[%clk 0:00:10.4]} 52. Re1 {[%clk 0:00:21.7]} 52... Bc4 {[%clk
0:00:10.2]} 53. Re4 {[%clk 0:00:20.5]} 53... Kf6 {[%clk 0:00:10.2]} 54. Rd4
{[%clk 0:00:19.5]} 54... Bxc5 {[%clk 0:00:09]} 55. bxc5 {[%clk 0:00:20.4]} 55...
Bxe6 {[%clk 0:00:07.9]} 56. Rd6 {[%clk 0:00:20.6]} 56... Re7 {[%clk 0:00:05.1]}
57. c6 {[%clk 0:00:20.9]} 57... Kf7 {[%clk 0:00:05.3]} 58. c7 {[%clk 0:00:20.5]}
58... Bc8 {[%clk 0:00:06]} 59. Rxe7+ {[%clk 0:00:20.2]} 59... Kxe7 {[%clk
0:00:06.9]} 60. Rd8 {[%clk 0:00:21.1]} 1-0

[Event "*** Titled Tuesday Blitz"]
[Site "Chess.com"]
[Date "2020.05.12"]
[Round "1"]
[White "jtayar88"]
[Black "mjray79"]
[Result "1-0"]
[WhiteElo "2559"]
[BlackElo "2230"]
[TimeControl "180+1"]
[EndTime "10:08:20 PDT"]
[Termination "jtayar88 won by resignation"]

1. e4 {[%clk 0:03:00.5]} 1... e5 {[%clk 0:02:59.5]} 2. Nf3 {[%clk 0:03:00]} 2...
Nc6 {[%clk 0:02:59.8]} 3. Nc3 {[%clk 0:03:00.3]} 3... Nf6 {[%clk 0:02:58.7]} 4.
d4 {[%clk 0:03:00.6]} 4... exd4 {[%clk 0:02:58.1]} 5. Nd5 {[%clk 0:03:00.7]}
5... Be7 {[%clk 0:02:43]} 6. Bf4 {[%clk 0:03:00.1]} 6... d6 {[%clk 0:02:39.2]}
7. Nxd4 {[%clk 0:02:59.9]} 7... O-O {[%clk 0:02:30.7]} 8. Nb5 {[%clk 0:02:59.1]}
8... Nxd5 {[%clk 0:02:26.6]} 9. exd5 {[%clk 0:03:00]} 9... Bg5 {[%clk
0:02:18.8]} 10. Bxg5 {[%clk 0:02:31.1]} 10... Qxg5 {[%clk 0:02:19.7]} 11. dxc6
{[%clk 0:02:03.6]} 11... Re8+ {[%clk 0:02:18.6]} 12. Be2 {[%clk 0:02:03.4]}
12... Qxb5 {[%clk 0:02:18.4]} 13. Qd3 {[%clk 0:01:40.5]} 13... bxc6 {[%clk
0:02:03.5]} 14. Qxb5 {[%clk 0:01:37]} 14... cxb5 {[%clk 0:02:04.4]} 15. Kd2
{[%clk 0:01:37.5]} 15... a6 {[%clk 0:02:00.5]} 16. a4 {[%clk 0:01:29.1]} 16...
Bd7 {[%clk 0:01:59.3]} 17. a5 {[%clk 0:01:23.6]} 17... Bc6 {[%clk 0:01:56.7]}
18. Rhg1 {[%clk 0:01:22.7]} 18... Re5 {[%clk 0:01:55.7]} 19. Bd3 {[%clk
0:01:20.1]} 19... Rae8 {[%clk 0:01:51.3]} 20. f4 {[%clk 0:01:19]} 20... R5e7
{[%clk 0:01:48.8]} 21. g3 {[%clk 0:01:16.9]} 21... Be4 {[%clk 0:01:48.1]} 22.
Rae1 {[%clk 0:01:04.1]} 22... Bxd3 {[%clk 0:01:46.9]} 23. Rxe7 {[%clk 0:01:05]}
23... Rxe7 {[%clk 0:01:46.6]} 24. Kxd3 {[%clk 0:01:05.9]} 24... c5 {[%clk
0:01:44.6]} 25. c3 {[%clk 0:01:00.7]} 25... f5 {[%clk 0:01:31.4]} 26. b4 {[%clk
0:00:57.8]} 26... Kf7 {[%clk 0:01:28.5]} 27. g4 {[%clk 0:00:51.8]} 27... fxg4
{[%clk 0:01:21.9]} 28. Rxg4 {[%clk 0:00:52.7]} 28... h6 {[%clk 0:01:18.1]} 29.
Rg2 {[%clk 0:00:35.6]} 29... Kf6 {[%clk 0:01:14.4]} 30. h4 {[%clk 0:00:22]}
30... Kf5 {[%clk 0:01:12.8]} 31. h5 {[%clk 0:00:20.6]} 31... Kxf4 {[%clk
0:01:07.7]} 32. bxc5 {[%clk 0:00:20]} 32... dxc5 {[%clk 0:01:06.8]} 33. Rg6
{[%clk 0:00:20.9]} 33... Ra7 {[%clk 0:00:57]} 34. Rc6 {[%clk 0:00:19.4]} 34...
c4+ {[%clk 0:00:52.5]} 35. Kd4 {[%clk 0:00:19.5]} 35... Kg5 {[%clk 0:00:50.9]}
36. Rc5+ {[%clk 0:00:19.3]} 36... Kf6 {[%clk 0:00:50.9]} 37. Rd5 {[%clk
0:00:19.5]} 37... Ke6 {[%clk 0:00:45.3]} 38. Ke4 {[%clk 0:00:17]} 38... g6
{[%clk 0:00:34.2]} 39. Re5+ {[%clk 0:00:14.1]} 39... Kf6 {[%clk 0:00:30.4]} 40.
hxg6 {[%clk 0:00:12.2]} 40... Kxg6 {[%clk 0:00:29.6]} 41. Re6+ {[%clk
0:00:12.5]} 41... Kg5 {[%clk 0:00:25]} 42. Kd5 {[%clk 0:00:12.6]} 42... h5
{[%clk 0:00:23]} 43. Kc5 {[%clk 0:00:12.7]} 43... h4 {[%clk 0:00:22.4]} 44. Kb6
{[%clk 0:00:13.2]} 44... Ra8 {[%clk 0:00:20.9]} 45. Kb7 {[%clk 0:00:12.7]} 45...
Rh8 {[%clk 0:00:19.9]} 46. Kxa6 {[%clk 0:00:12.6]} 46... h3 {[%clk 0:00:19.5]}
47. Re1 {[%clk 0:00:12.4]} 47... h2 {[%clk 0:00:19.3]} 48. Rh1 {[%clk
0:00:12.5]} 48... b4 {[%clk 0:00:17.2]} 49. cxb4 {[%clk 0:00:12.3]} 49... c3
{[%clk 0:00:17.3]} 50. b5 {[%clk 0:00:12.6]} 50... c2 {[%clk 0:00:16.8]} 51. b6
{[%clk 0:00:12.8]} 51... Kg4 {[%clk 0:00:16.9]} 52. b7 {[%clk 0:00:12.1]} 52...
Kg3 {[%clk 0:00:16.8]} 53. Rc1 {[%clk 0:00:09.1]} 53... h1=Q {[%clk 0:00:15.4]}
54. Rxh1 {[%clk 0:00:08.3]} 54... Rxh1 {[%clk 0:00:16.3]} 55. b8=Q+ {[%clk
0:00:08.7]} 55... Kg4 {[%clk 0:00:13]} 56. Qg8+ {[%clk 0:00:08.4]} 56... Kf4
{[%clk 0:00:11.7]} 57. Qc4+ {[%clk 0:00:08.1]} 57... Ke3 {[%clk 0:00:11.3]} 58.
Qxc2 {[%clk 0:00:07.9]} 58... Rh6+ {[%clk 0:00:12.2]} 59. Kb5 {[%clk 0:00:07.6]}
59... Rh5+ {[%clk 0:00:12.4]} 60. Qc5+ {[%clk 0:00:07.9]} 60... Rxc5+ {[%clk
0:00:12.1]} 61. Kxc5 {[%clk 0:00:08.8]} 61... Kd3 {[%clk 0:00:12.6]} 62. a6
{[%clk 0:00:09.7]} 62... Kc2 {[%clk 0:00:13.5]} 63. a7 {[%clk 0:00:10.6]} 63...
Kb3 {[%clk 0:00:14.4]} 64. a8=Q {[%clk 0:00:11.3]} 64... Kb2 {[%clk 0:00:15.3]}
65. Qf3 {[%clk 0:00:11.2]} 65... Kb1 {[%clk 0:00:14.6]} 66. Kc4 {[%clk
0:00:11.5]} 1-0

[Event "*** Titled Tuesday Blitz"]
[Site "Chess.com"]
[Date "2020.05.12"]
[Round "1"]
[White "BeanScreen"]
[Black "hoshor"]
[Result "1-0"]
[WhiteElo "2568"]
[BlackElo "2236"]
[TimeControl "180+1"]
[EndTime "10:08:22 PDT"]
[Termination "BeanScreen won by resignation"]

1. e4 {[%clk 0:02:59.7]} 1... g6 {[%clk 0:03:00.9]} 2. d4 {[%clk 0:02:59.4]}
2... d6 {[%clk 0:03:01.8]} 3. Nc3 {[%clk 0:02:59.3]} 3... c6 {[%clk 0:03:02.3]}
4. Nf3 {[%clk 0:02:58.8]} 4... Bg7 {[%clk 0:03:02.8]} 5. Bc4 {[%clk 0:02:58.1]}
5... b5 {[%clk 0:03:02.7]} 6. Bb3 {[%clk 0:02:57.8]} 6... a5 {[%clk 0:03:02.1]}
7. a4 {[%clk 0:02:57.4]} 7... b4 {[%clk 0:03:02.4]} 8. Ne2 {[%clk 0:02:57.4]}
8... e6 {[%clk 0:03:03]} 9. O-O {[%clk 0:02:57.3]} 9... Ne7 {[%clk 0:03:03.3]}
10. Bf4 {[%clk 0:02:56.4]} 10... Ba6 {[%clk 0:03:01.7]} 11. Re1 {[%clk
0:02:55.5]} 11... O-O {[%clk 0:03:01.1]} 12. Qd2 {[%clk 0:02:54.7]} 12... Re8
{[%clk 0:03:00.3]} 13. Bh6 {[%clk 0:02:53.4]} 13... Bh8 {[%clk 0:03:00.2]} 14.
Qf4 {[%clk 0:02:52]} 14... d5 {[%clk 0:02:58.8]} 15. Ng5 {[%clk 0:02:50.1]}
15... Rf8 {[%clk 0:02:39.6]} 16. Bxf8 {[%clk 0:02:14.3]} 16... Qxf8 {[%clk
0:02:40.5]} 17. Rad1 {[%clk 0:02:07.3]} 17... h6 {[%clk 0:02:39]} 18. Nf3 {[%clk
0:02:06.1]} 18... Bg7 {[%clk 0:02:39.4]} 19. h4 {[%clk 0:02:03.1]} 19... Nd7
{[%clk 0:02:35.5]} 20. Ng3 {[%clk 0:01:48]} 20... Rc8 {[%clk 0:02:23.6]} 21. h5
{[%clk 0:01:36.7]} 21... g5 {[%clk 0:02:23.2]} 22. Qd6 {[%clk 0:01:33.3]} 22...
Qd8 {[%clk 0:02:15.7]} 23. exd5 {[%clk 0:01:33]} 23... Nxd5 {[%clk 0:02:12.4]}
24. Bxd5 {[%clk 0:01:30.5]} 24... Bf8 {[%clk 0:02:05]} 25. Qxc6 {[%clk
0:00:57.6]} 25... Rxc6 {[%clk 0:02:04.8]} 26. Bxc6 {[%clk 0:00:58.5]} 26... Nf6
{[%clk 0:02:01.3]} 27. Ne5 {[%clk 0:00:56.4]} 27... Be7 {[%clk 0:01:54.2]} 28.
c3 {[%clk 0:00:38.7]} 28... bxc3 {[%clk 0:01:53.2]} 29. bxc3 {[%clk 0:00:39.5]}
29... Nd5 {[%clk 0:01:53.3]} 30. Ne4 {[%clk 0:00:33]} 30... Nf4 {[%clk
0:01:43.3]} 31. Rb1 {[%clk 0:00:29.3]} 31... Nxh5 {[%clk 0:01:39.6]} 32. Nd7
{[%clk 0:00:25.4]} 32... Qc7 {[%clk 0:01:26.7]} 33. Nb8 {[%clk 0:00:12.1]} 33...
Bc4 {[%clk 0:01:22]} 34. Rb7 {[%clk 0:00:07.8]} 34... Qd8 {[%clk 0:01:17.3]} 35.
Reb1 {[%clk 0:00:05.1]} 35... Kg7 {[%clk 0:01:11.3]} 36. Nd7 {[%clk 0:00:04.3]}
36... Ba3 {[%clk 0:01:00.2]} 37. Ne5 {[%clk 0:00:03.8]} 37... Be7 {[%clk
0:00:45.7]} 38. Rb8 {[%clk 0:00:04]} 38... Qc7 {[%clk 0:00:38.6]} 39. R1b7
{[%clk 0:00:03.8]} 39... Qxb8 {[%clk 0:00:23.5]} 40. Rxb8 {[%clk 0:00:04.7]}
40... f5 {[%clk 0:00:22]} 41. Nxc4 {[%clk 0:00:04.6]} 41... fxe4 {[%clk
0:00:21.5]} 42. Nxa5 {[%clk 0:00:04.6]} 42... Bd6 {[%clk 0:00:21.3]} 43. Rb7+
{[%clk 0:00:02.5]} 43... Kf6 {[%clk 0:00:21.3]} 44. Bxe4 {[%clk 0:00:03.4]}
44... Nf4 {[%clk 0:00:21.1]} 45. Bf3 {[%clk 0:00:03.7]} 45... h5 {[%clk
0:00:19.2]} 46. Nc6 {[%clk 0:00:04]} 46... g4 {[%clk 0:00:19.3]} 47. Be4 {[%clk
0:00:03.7]} 47... Ne2+ {[%clk 0:00:18.7]} 48. Kf1 {[%clk 0:00:04.1]} 48... Nxc3
{[%clk 0:00:19.6]} 49. Bd3 {[%clk 0:00:04.5]} 49... Nd5 {[%clk 0:00:19.4]} 50.
a5 {[%clk 0:00:04.3]} 50... h4 {[%clk 0:00:14.9]} 51. a6 {[%clk 0:00:03.2]}
51... h3 {[%clk 0:00:15.3]} 52. gxh3 {[%clk 0:00:04.1]} 52... gxh3 {[%clk
0:00:15.5]} 53. Be4 {[%clk 0:00:03.8]} 53... Nc3 {[%clk 0:00:14.3]} 54. Bf3
{[%clk 0:00:03.8]} 54... e5 {[%clk 0:00:08.4]} 55. dxe5+ {[%clk 0:00:03.2]}
55... Bxe5 {[%clk 0:00:08.7]} 56. Nxe5 {[%clk 0:00:04.1]} 56... Kxe5 {[%clk
0:00:09.1]} 57. a7 {[%clk 0:00:05]} 1-0